fUST/lending_fUST_20240824
["ID","MTS","AMOUNT","RATE_DAILY","PERIOD"]
[335684654,1724429108218,156.0,0.00024658,120]
[335684655,1724429146204,156.0,0.00024658,60]
[335684659,1724429235311,-154.72922386,0.00013688,2]
[335684660,1724429235335,-470.272762,0.00013699,2]
[335684661,1724429235359,-277.7755473,0.00013982,2]
[335684662,1724429235383,-1553.50241697,0.00014147,2]
[335684663,1724429235405,-300.0,0.00014163,2]
[335684664,1724429235426,-35084.9609292,0.00014164,2]
[335684665,1724429235449,-588.268936,0.00014247,2]
[335684666,1724429235470,-170.020842,0.00014247,2]
[335684667,1724429235491,-282.69865686,0.00014313,2]
[335684668,1724429235515,-500.0,0.00014313,2]
[335684669,1724429235536,-442.31656663,0.00014313,2]
[335684670,1724429235570,-57.68343337,0.00014313,2]
[335684671,1724429235592,-500.0,0.00014313,2]
[335684672,1724429235613,-238.22746906,0.00014313,2]
[335684680,1724429356143,-293.26617941,0.00013497,2]
[335684681,1724429356163,-154.74467129,0.00014313,2]
[335684682,1724429356183,-300.0,0.00014313,2]
[335684683,1724429356205,-7888.68217105,0.00014314,2]
[335684684,1724429356242,-8529.11038325,0.00014314,2]
[335684685,1724429356264,-380.3332564,0.00014976,2]
[335684686,1724429356287,-3000.0,0.00015412,2]
[335684773,1724429432219,-682.19449144,0.00016438,2]
[335684776,1724429432229,-500.0,0.00016438,2]
[335684778,1724429432240,-163.3,0.00016959,2]
[335684780,1724429432251,-1111.52616931,0.00016968,2]
[335684782,1724429432260,-1111.52616931,0.00016968,2]
[335684784,1724429432269,-163.3,0.0001707,2]
[335684786,1724429432279,-1359.31461484,0.00017073,2]
[335684788,1724429432291,-1068.7385551,0.00017086,2]
[335684893,1724429433309,-4424.94954231,0.00017086,2]
[335685388,1724429438261,-609.445,0.00017086,2]
[335685580,1724429439962,154.74467129,0.00015412,2]
[335685630,1724429440423,-2399.726575,0.00017086,2]
[335685632,1724429440436,-75463.33977128,0.00017086,2]
[335685634,1724429440446,-300.0,0.00017118,2]
[335685636,1724429440455,-391.41419832,0.00017173,2]
[335685638,1724429440464,-163.3,0.00017181,2]
[335685640,1724429440473,-32187.7605463,0.00017189,2]
[335685642,1724429440483,-2650.19814355,0.00017192,2]
[335685644,1724429440492,-163.3,0.00017292,2]
[335685646,1724429440501,-168.931042,0.00017327,2]
[335685648,1724429440511,-871.621915,0.00017327,2]
[335685650,1724429440521,-163.3,0.00017404,2]
[335685652,1724429440531,-1416.0,0.00017438,2]
[335685654,1724429440540,-3000.0,0.000175,2]
[335685656,1724429440549,-3000.0,0.0001751,2]
[335685658,1724429440558,-163.3,0.00017515,2]
[335685660,1724429440567,-5850.0,0.0001752,2]
[335685662,1724429440576,-153.0,0.00017541,2]
[335685664,1724429440585,-153.0,0.00017541,2]
[335685666,1724429440595,-153.0,0.00017541,2]
[335685668,1724429440604,-153.0,0.00017541,2]
[335685670,1724429440614,-871.621915,0.00017544,2]
[335685672,1724429440623,-2650.19814355,0.00017544,2]
[335685674,1724429440633,-163.3,0.00017626,2]
[335685676,1724429440643,-150.0,0.00017654,2]
[335685678,1724429440652,-32187.7605463,0.00017662,2]
[335685680,1724429440662,-150.104,0.00017672,2]
[335685682,1724429440671,-213.126,0.00017672,2]
[335685684,1724429440682,-150.0,0.00017672,2]
[335685686,1724429440691,-150.0,0.00017672,2]
[335685688,1724429440700,-150.0,0.00017672,2]
[335685690,1724429440710,-522.0,0.00017672,2]
[335685692,1724429440719,-163.3,0.00017737,2]
[335685694,1724429440728,-871.621915,0.0001776,2]
[335685696,1724429440740,-488.82311791,0.00017766,2]
[335685698,1724429440750,-300.0,0.000178,7]
[335685700,1724429440759,-3200.0,0.00017841,2]
[335685702,1724429440769,-163.3,0.00017848,2]
[335685704,1724429440778,-500.0,0.00017873,2]
[335685706,1724429440787,-252.89410774,0.00017873,2]
[335685708,1724429440798,-226.92927236,0.00017873,2]
[335685710,1724429440807,-500.0,0.00017873,2]
[335685712,1724429440817,-500.0,0.00017873,2]
[335685714,1724429440826,-500.0,0.00017873,2]
[335685716,1724429440835,-500.0,0.00017873,2]
[335685740,1724429441053,-500.0,0.00017873,2]
[335685742,1724429441067,-500.0,0.00017873,2]
[335685744,1724429441076,-500.0,0.00017873,2]
[335685746,1724429441085,-500.0,0.00017873,2]
[335685748,1724429441096,-500.0,0.00017873,2]
[335685750,1724429441105,-500.0,0.00017873,2]
[335685752,1724429441114,-500.0,0.00017873,2]
[335685754,1724429441123,-500.0,0.00017873,2]
[335685756,1724429441133,-477.78257799,0.00017873,2]
[335685758,1724429441143,-500.0,0.00017873,2]
[335685760,1724429441152,-500.0,0.00017873,2]
[335685762,1724429441161,-32187.7605463,0.00017874,2]
[335685764,1724429441171,-32187.7605463,0.00017886,2]
[335685766,1724429441181,-43905.9640223,0.00017896,2]
[335685768,1724429441190,-2650.19814355,0.00017896,2]
[335685770,1724429441199,-10347.1553605,0.00017898,2]
[335685772,1724429441211,-163.3,0.0001796,2]
[335685774,1724429441221,-871.621915,0.00017977,2]
[335685776,1724429441231,-1000.0,0.00018,18]
[335685778,1724429441242,-155.0,0.00018,2]
[335685780,1724429441253,-163.3,0.00018071,2]
[335685782,1724429441264,-150.112233,0.000181,2]
[335685784,1724429441274,-150.01,0.00018181,2]
[335685786,1724429441286,-5302.2417772,0.00018181,2]
[335685788,1724429441300,-207.7006306,0.00018181,2]
[335685790,1724429441309,-163.3,0.00018182,2]
[335685792,1724429441318,-157.632219,0.00018193,2]
[335685794,1724429441329,-166.589763,0.00018193,2]
[335685796,1724429441339,-157.632219,0.00018193,2]
[335685798,1724429441348,-164.520449,0.00018193,2]
[335685800,1724429441358,-172.0985,0.00018193,2]
[335685802,1724429441367,-172.0985,0.00018193,2]
[335685804,1724429441378,-158.312507,0.00018193,2]
[335685806,1724429441388,-170.388249,0.00018193,2]
[335685808,1724429441398,-170.388248,0.00018193,2]
[335685810,1724429441407,-168.931042,0.00018193,2]
[335685812,1724429441417,-630.528877,0.00018193,2]
[335685814,1724429441427,-158.992795,0.00018193,2]
[335685816,1724429441439,-609.146046,0.00018193,2]
[335685818,1724429441449,-340.776496,0.00018193,2]
[335685820,1724429441458,-207.765355,0.00018193,2]
[335685822,1724429441469,-163.382281,0.00018193,2]
[335685824,1724429441479,-1053.855932,0.00018193,2]
[335685826,1724429441488,-163.38228,0.00018193,2]
[335685828,1724429441498,-163.38228,0.00018193,2]
[335685830,1724429441507,-198.247157,0.00018193,2]
[335685832,1724429441516,-275.20172,0.00018193,2]
[335685834,1724429441525,-244.089139,0.00018193,2]
[335685836,1724429441536,-871.621915,0.00018193,2]
[335685838,1724429441545,-150.112233,0.000182,2]
[335685840,1724429441555,-150.112233,0.000182,2]
[335685842,1724429441564,-150.112233,0.000182,2]
[335685844,1724429441573,-10341.53018064,0.00018247,2]
[335686005,1724429443238,-149.33480972,0.00017981,2]
[335686749,1724429536251,109.79637242,0.00014247,2]
[335686750,1724429536273,449.05911658,0.00014247,2]
[335686791,1724430095636,105730.4591154,0.00027,120]
[335686801,1724430316364,604.65,0.00025,60]
[335686807,1724430428169,-300.0,0.00012778,2]
[335686808,1724430428190,-2054.86714036,0.00012779,2]
[335686810,1724430441130,-3211.75012926,0.00012779,2]
[335686818,1724430517217,37087.58595141,0.00024,60]
[335686830,1724430540063,162.57331868,0.00025,60]
[335686840,1724430558117,-300.0,0.00012778,2]
[335686841,1724430558139,-300.0,0.00012778,2]
[335686842,1724430558161,-182.05291897,0.00012779,2]
[335686843,1724430558184,-1429.18644138,0.00012779,2]
[335686844,1724430558214,-2566.34945261,0.00012779,2]
[335686845,1724430558235,-751.53941528,0.00012779,2]
[335686846,1724430558256,-195.13349832,0.00013699,2]
[335686847,1724430562113,-21937.07539503,0.00014,2]
[335686848,1724430564132,-2630.11289671,0.00014,2]
[335686849,1724430564155,-420.0,0.00014056,2]
[335686850,1724430564176,-273.47695658,0.00014245,2]
[335686851,1724430564198,-157.03390899,0.00014245,2]
[335686852,1724430564219,-180.82801907,0.00014245,2]
[335686853,1724430564241,-1610.22402745,0.00014245,2]
[335686854,1724430564262,-239.30896493,0.00014245,2]
[335686855,1724430564283,-767.6778519,0.00014245,2]
[335686858,1724430573138,-1037.41035024,0.00014245,2]
[335686859,1724430573162,-665.59514245,0.00014245,2]
[335686860,1724430573184,-991.38842768,0.00014245,2]
[335686861,1724430573207,-11024.13122168,0.00014245,2]
[335686862,1724430573229,-805.65141602,0.00014245,3]
[335686863,1724430573252,-190.76142849,0.00014245,2]
[335686864,1724430573274,-155.09847633,0.00014245,2]
[335686865,1724430573295,-494.54817888,0.00014245,2]
[335686866,1724430573318,-155.03912898,0.00014245,2]
[335686867,1724430573340,-464.38298727,0.00014247,2]
[335686941,1724430638521,-611.16,0.00014245,2]
[335686949,1724430640424,-92.03285273,0.00014247,2]
[335686950,1724430640434,-235.136381,0.00015738,2]
[335686951,1724430640443,-250.0000107,0.00015874,2]
[335686952,1724430640453,-8121.8573486,0.0001614,2]
[335686953,1724430640463,-300.0,0.00016437,2]
[335686954,1724430640472,-500.0,0.00016438,2]
[335686955,1724430640481,-168.931043,0.00016913,2]
[335686956,1724430640491,-718.549246,0.00016913,2]
[335686957,1724430640501,-769.781723,0.00016913,2]
[335686958,1724430640510,-174.324383,0.00016913,2]
[335686959,1724430640519,-174.324383,0.00016913,2]
[335686960,1724430640529,-168.931042,0.00016913,2]
[335686961,1724430640538,-174.324383,0.00016913,2]
[335686962,1724430640548,-185.8,0.00016959,2]
[335686963,1724430640557,-200.53469754,0.00017,2]
[335686964,1724430640567,-185.8,0.00017076,2]
[335686965,1724430640576,-953.84767115,0.00017086,2]
[335686966,1724430640587,-718.549246,0.00017125,2]
[335686967,1724430640597,-769.781723,0.00017125,2]
[335686968,1724430640606,-174.324383,0.00017125,2]
[335686969,1724430640615,-174.324383,0.00017125,2]
[335686970,1724430640625,-174.324383,0.00017125,2]
[335686971,1724430640634,-185.8,0.00017193,2]
[335686972,1724430640643,-185.8,0.0001731,2]
[335686973,1724430640653,-718.549246,0.00017336,2]
[335686974,1724430640667,-769.781723,0.00017336,2]
[335686975,1724430640677,-174.324383,0.00017336,2]
[335686976,1724430640686,-174.324383,0.00017336,2]
[335686977,1724430640695,-174.324383,0.00017336,2]
[335686978,1724430640706,-185.8,0.00017427,2]
[335686979,1724430640716,-3000.0,0.000175,2]
[335686980,1724430640725,-3000.0,0.0001751,2]
[335686981,1724430640736,-3000.0,0.0001752,2]
[335686982,1724430640746,-3000.0,0.0001753,2]
[335686983,1724430640755,-3000.0,0.0001754,2]
[335686984,1724430640764,-185.8,0.00017545,2]
[335686985,1724430640773,-718.549246,0.00017548,2]
[335686986,1724430640783,-769.781723,0.00017548,2]
[335686987,1724430640792,-174.324383,0.00017548,2]
[335686988,1724430640801,-174.324383,0.00017548,2]
[335686989,1724430640810,-174.324383,0.00017548,2]
[335686990,1724430640819,-5534.556702,0.0001755,2]
[335686991,1724430640829,-185.8,0.00017662,2]
[335686992,1724430640839,-500.0,0.00017699,2]
[335686993,1724430640849,-500.0,0.00017699,2]
[335686994,1724430640859,-500.0,0.00017699,2]
[335686995,1724430640869,-300.0,0.00017699,2]
[335686996,1724430640879,-1999.999999,0.000177,2]
[335686997,1724430640888,-150.0,0.00017722,2]
[335686998,1724430640897,-522.0,0.00017722,2]
[335686999,1724430640908,-34208.0,0.00017722,2]
[335687000,1724430640917,-1416.0,0.00017722,2]
[335687001,1724430640927,-154.89427941,0.00017737,2]
[335687002,1724430640936,-3611.34855229,0.0001775,2]
[335687003,1724430640946,-718.549246,0.00017759,2]
[335687004,1724430640956,-769.781723,0.00017759,2]
[335687005,1724430640965,-174.324383,0.00017759,2]
[335687006,1724430640975,-174.324383,0.00017759,2]
[335687007,1724430640984,-174.324383,0.00017759,2]
[335687008,1724430640994,-185.8,0.00017779,2]
[335687009,1724430641003,-3611.34855229,0.00017788,2]
[335687010,1724430641013,-300.0,0.000178,7]
[335687011,1724430641022,-31031.1987242,0.00017809,2]
[335687012,1724430641032,-3611.34855229,0.00017825,2]
[335687013,1724430641041,-31031.1987242,0.0001785,2]
[335687014,1724430641050,-3611.34855229,0.00017863,2]
[335687015,1724430641060,-43905.9640223,0.0001787,2]
[335687016,1724430641070,-12164.2704228,0.0001789,2]
[335687017,1724430641097,-3603.18045,0.0001789,2]
[335687055,1724430643415,-7251.02206326,0.0001789,2]
[335687056,1724430643427,-295.835,0.0001789,2]
[335687057,1724430643526,-1122.03529373,0.0001789,2]
[335687086,1724430684832,273.37336231,0.0001211,2]
[335687091,1724430757644,2272.46189857,0.0001211,2]
[335687093,1724430772449,240.50142109,0.0001211,2]
[335687096,1724430776817,225.44791877,0.0001211,2]
[335687097,1724430791189,3864.48966411,0.0001211,2]
[335687101,1724430894063,10375.51589371,0.0001211,2]
[335687102,1724430897641,16318.75386369,0.0001211,2]
[335687104,1724430971998,971.831656,0.0001211,2]
[335687105,1724430996194,1809.38764887,0.0001211,2]
[335687106,1724431022207,309.45844772,0.0001211,2]
[335687138,1724431642187,-169.247712,0.00012455,2]
[335687139,1724431642209,-169.247712,0.00012527,2]
[335687140,1724431642230,-169.247712,0.00012599,2]
[335687141,1724431642251,-130.66945263,0.00012629,2]
[335687148,1724431747112,-9663.17336824,0.00012629,2]
[335687149,1724431747134,-1526.94118496,0.00012629,2]
[335687150,1724431747156,-300.0,0.00012631,2]
[335687151,1724431747177,-21842.1276068,0.00012632,2]
[335687153,1724431749370,-8096.95105962,0.00012629,2]
[335687154,1724431749391,-122.5941223,0.00012632,2]
[335687155,1724431749414,-169.247712,0.00012671,2]
[335687156,1724431749435,-167.2054304,0.00012741,2]
[335687157,1724431749457,-169.247712,0.00012743,2]
[335687158,1724431749477,-1500.0,0.00012782,2]
[335687159,1724431749498,-169.247712,0.00012815,2]
[335687160,1724431749520,-169.247712,0.00012888,2]
[335687161,1724431749540,-811.1651197,0.00012898,2]
[335687162,1724431749561,-3476.01802427,0.000129,2]
[335687163,1724431749582,-169.247712,0.0001296,2]
[335687164,1724431749604,-729.07882833,0.00012971,2]
[335687165,1724431749628,-2713.66408099,0.00012971,2]
[335687166,1724431749648,-729.07882833,0.00012985,2]
[335687167,1724431749669,-2143.62270035,0.00012985,2]
[335687168,1724431749690,-817.86473213,0.00012989,2]
[335687169,1724431749711,-817.86473213,0.00012989,2]
[335687170,1724431749732,-422.06902538,0.00012991,2]
[335687171,1724431749755,-862.83835129,0.00013,2]
[335687172,1724431749776,-154.74467129,0.00013025,2]
[335687173,1724431749797,-199.18376074,0.00013025,2]
[335687174,1724431749819,-169.247712,0.00013032,2]
[335687175,1724431749840,-544.22652236,0.00013051,2]
[335687176,1724431749863,-934.16422127,0.00013051,2]
[335687177,1724431749884,-544.22652236,0.00013051,2]
[335687178,1724431749906,-569.78751732,0.00013051,2]
[335687179,1724431749927,-811.71027722,0.00013051,2]
[335687180,1724431749947,-309.45844772,0.00013051,2]
[335687181,1724431749968,-409.75022329,0.00013051,2]
[335687182,1724431749989,-422.48065002,0.00013051,2]
[335687183,1724431750014,-210.35988185,0.00013051,2]
[335687184,1724431750036,-169.247712,0.00013104,2]
[335687185,1724431750057,-154.8631072,0.00013333,2]
[335687186,1724431750078,-156.88380059,0.00013333,2]
[335687187,1724431750101,-288.40254199,0.00013333,2]
[335687188,1724431750123,-154.79103211,0.00013333,2]
[335687189,1724431750144,-493.52644239,0.00013333,2]
[335687190,1724431750165,-371.27166616,0.00013333,2]
[335687191,1724431750185,-404.59278011,0.00013333,2]
[335687192,1724431750207,-602.12270351,0.00013333,2]
[335687193,1724431750228,-155.6116134,0.00013333,2]
[335687194,1724431750249,-154.74467129,0.00013333,2]
[335687195,1724431750270,-320.39554735,0.00013333,2]
[335687196,1724431750292,-495.34936838,0.00013333,2]
[335687197,1724431750314,-155.74950473,0.00013333,2]
[335687198,1724431750335,-154.74467129,0.00013333,2]
[335687199,1724431750357,-197.33180704,0.00013333,2]
[335687200,1724431750381,-422.53325666,0.00013477,2]
[335687201,1724431750401,-305.07401593,0.00013477,2]
[335687202,1724431750422,-154.89903915,0.00013477,2]
[335687203,1724431750443,-665.72637695,0.00013477,2]
[335687204,1724431750465,-5593.08482453,0.00013496,2]
[335687205,1724431750485,-154.88229937,0.00013496,2]
[335687206,1724431750507,-521.41855438,0.00013497,2]
[335687207,1724431750528,-301.66413705,0.00013497,2]
[335687208,1724431750549,-500.0,0.00013529,2]
[335687209,1724431750570,-500.0,0.00013587,2]
[335687210,1724431750590,-584.36584237,0.00013588,2]
[335687211,1724431750610,-1623.71711139,0.00013596,3]
[335687212,1724431750631,-3611.34855229,0.00013598,2]
[335687213,1724431750651,-256.31582917,0.00013688,2]
[335687214,1724431750672,-30765.642124,0.00013689,2]
[335687215,1724431750693,-500.0,0.00013698,2]
[335687216,1724431750714,-500.0,0.00013698,2]
[335687217,1724431750734,-500.0,0.00013698,2]
[335687218,1724431750755,-189.9631639,0.00013698,2]
[335687219,1724431750776,-301.50833509,0.00013698,2]
[335687220,1724431750796,-500.0,0.00013698,2]
[335687221,1724431750819,-2555.604393,0.00013699,2]
[335687222,1724431750840,-2523.6644461,0.00013699,2]
[335687223,1724431750864,-3000.0,0.00013699,2]
[335687224,1724431750885,-194.87445923,0.00013699,2]
[335687225,1724431750905,-500.0,0.00013699,2]
[335687226,1724431750926,-500.0,0.00013699,2]
[335687227,1724431750947,-500.0,0.00013699,2]
[335687228,1724431750969,-500.0,0.00013699,2]
[335687229,1724431750990,-500.0,0.00013699,2]
[335687230,1724431751014,-500.0,0.00013699,2]
[335687231,1724431751035,-500.0,0.00013699,2]
[335687232,1724431751055,-500.0,0.00013699,2]
[335687233,1724431751076,-500.0,0.00013699,2]
[335687234,1724431751097,-500.0,0.00013699,2]
[335687235,1724431751119,-500.0,0.00013699,2]
[335687236,1724431751145,-500.0,0.00013699,2]
[335687237,1724431751166,-500.0,0.00013699,2]
[335687238,1724431751190,-500.0,0.00013699,2]
[335687239,1724431751211,-500.0,0.00013699,2]
[335687240,1724431751234,-500.0,0.00013699,2]
[335687241,1724431751257,-500.0,0.00013699,2]
[335687242,1724431751279,-500.0,0.00013699,2]
[335687243,1724431751300,-500.0,0.00013699,2]
[335687244,1724431751322,-500.0,0.00013699,2]
[335687245,1724431751344,-500.0,0.00013699,2]
[335687246,1724431751370,-500.0,0.00013699,2]
[335687247,1724431751390,-500.0,0.00013699,2]
[335687248,1724431751414,-500.0,0.00013699,2]
[335687249,1724431751437,-500.0,0.00013699,2]
[335687250,1724431751460,-500.0,0.00013699,2]
[335687251,1724431751482,-500.0,0.00013699,2]
[335687252,1724431751502,-500.0,0.00013699,2]
[335687253,1724431751523,-500.0,0.00013699,2]
[335687254,1724431751547,-500.0,0.00013699,2]
[335687255,1724431751568,-500.0,0.00013699,2]
[335687256,1724431751589,-500.0,0.00013699,2]
[335687257,1724431751609,-500.0,0.00013699,2]
[335687258,1724431751630,-552.89986757,0.00013699,2]
[335687259,1724431751652,-500.0,0.00013699,2]
[335687260,1724431751673,-500.0,0.00013699,2]
[335687261,1724431751694,-500.0,0.00013699,2]
[335687262,1724431751715,-500.0,0.00013699,2]
[335687263,1724431751736,-500.0,0.00013699,2]
[335687264,1724431751761,-500.0,0.00013699,2]
[335687265,1724431751783,-500.0,0.00013699,2]
[335687266,1724431751804,-500.0,0.00013699,2]
[335687267,1724431751826,-500.0,0.00013699,2]
[335687268,1724431751848,-500.0,0.00013699,2]
[335687269,1724431751871,-500.0,0.00013699,2]
[335687270,1724431751893,-500.0,0.00013699,2]
[335687271,1724431751915,-500.0,0.00013699,2]
[335687272,1724431751936,-500.0,0.00013699,2]
[335687273,1724431751958,-500.0,0.00013699,2]
[335687274,1724431751979,-500.0,0.00013699,2]
[335687275,1724431752000,-500.0,0.00013699,2]
[335687276,1724431752025,-400.0,0.00013699,2]
[335687277,1724431752046,-500.0,0.00013699,2]
[335687278,1724431752067,-500.0,0.00013699,2]
[335687279,1724431752091,-500.0,0.00013699,2]
[335687280,1724431752113,-500.0,0.00013699,2]
[335687281,1724431752135,-500.0,0.00013699,2]
[335687282,1724431752156,-500.0,0.00013756,2]
[335687283,1724431752177,-500.0,0.00013756,2]
[335687284,1724431752198,-413.74889628,0.00013792,2]
[335687285,1724431752220,-420.0,0.00013894,2]
[335687286,1724431752241,-224.16153548,0.00013971,2]
[335687287,1724431752262,-298.97351394,0.00013971,2]
[335687288,1724431752284,-1000.0,0.00014077,2]
[335687289,1724431752305,-309.45844772,0.00014092,2]
[335687290,1724431752327,-150.112233,0.000141,2]
[335687291,1724431752348,-1000.0,0.00014135,2]
[335687292,1724431752371,-157.510303,0.00014247,2]
[335687293,1724431752393,-569.492783,0.00014247,2]
[335687294,1724431752414,-1000.0,0.00014304,2]
[335687295,1724431752435,-400.85008459,0.00014304,2]
[335687296,1724431752457,-196.6746805,0.00014519,2]
[335687297,1724431752479,-150.112233,0.000146,2]
[335687298,1724431752501,-3611.34855229,0.00014668,2]
[335687299,1724431752523,-1602.31593733,0.00014975,2]
[335687300,1724431752545,-205.14521283,0.00015,2]
[335687301,1724431752566,-150.112233,0.00015,2]
[335687302,1724431752588,-1300.0,0.00015034,2]
[335687303,1724431752609,-809.24499369,0.00015202,2]
[335687304,1724431752632,-587.0,0.00015284,2]
[335687305,1724431752653,-156.64720443,0.00015308,2]
[335687306,1724431752674,-157.14223377,0.00015308,2]
[335687307,1724431752695,-202.0609001,0.00015308,2]
[335687308,1724431752717,-991.25718944,0.00015308,2]
[335687309,1724431752740,-180.84519984,0.00015308,2]
[335687310,1724431752762,-3092.64278727,0.00015308,2]
[335687311,1724431752783,-155.10351085,0.00015308,2]
[335687312,1724431752807,-154.7767652,0.00015308,2]
[335687313,1724431752830,-535.01392671,0.00015308,2]
[335687314,1724431752855,-197.00259492,0.00015308,2]
[335687315,1724431752877,-160.49093254,0.00015308,2]
[335687316,1724431752898,-308.32105333,0.00015308,2]
[335687317,1724431752919,-154.93215599,0.00015308,2]
[335687318,1724431752940,-188.56371582,0.00015308,2]
[335687319,1724431752965,-342.75995159,0.00015308,2]
[335687320,1724431752987,-184.61601164,0.00015308,2]
[335687321,1724431753011,-520.80380986,0.00015308,2]
[335687322,1724431753032,-22760.71476089,0.00015308,2]
[335687323,1724431753055,-41.8890539,0.000154,2]
[335687324,1724431760124,-297.41889693,0.00012989,2]
[335687327,1724431772154,-694.19647253,0.00012989,2]
[335687328,1724431772175,-154.74467129,0.00012999,2]
[335687329,1724431772196,-899.12102389,0.00013051,2]
[335687330,1724431772218,-209.73889129,0.00013333,2]
[335687331,1724431772240,-780.35335208,0.00013333,2]
[335687332,1724431772261,-500.0,0.00013698,2]
[335687333,1724431772283,-318.95695952,0.00013698,2]
[335687334,1724431772304,-155.35591657,0.00013792,2]
[335687335,1724431772325,-108.2231791,0.000154,2]
[335687336,1724431782315,49.86853373,0.00015308,2]
[335687388,1724431832784,-493.47055315,0.00014519,2]
[335687390,1724431832795,-412.89428066,0.00014519,2]
[335687392,1724431832805,-569.78751732,0.00014519,2]
[335687394,1724431832815,-155.11962218,0.00014519,2]
[335687396,1724431832826,-300.0,0.00015307,2]
[335687398,1724431832836,-1907.65350243,0.00015308,2]
[335687400,1724431832845,-265.91867459,0.00015308,2]
[335687401,1724431832855,-404.59278011,0.00015308,2]
[335687402,1724431832865,-3110.42782937,0.00015308,2]
[335687404,1724431832874,-1631.86505447,0.00015739,2]
[335687985,1724431838604,-1979.48349782,0.00015739,2]
[335687987,1724431838613,-3476.0180242,0.00015853,2]
[335687989,1724431838623,-150.112233,0.000159,2]
[335687991,1724431838633,-150.112233,0.000163,2]
[335687993,1724431838642,-500.0,0.00016438,2]
[335687995,1724431838652,-953.84767115,0.00016711,2]
[335687998,1724431838661,-150.112233,0.000168,2]
[335688000,1724431838671,-3611.34855229,0.00016809,2]
[335688002,1724431838681,-420.0,0.00016837,2]
[335688004,1724431838690,-248.304479,0.00016913,2]
[335688006,1724431838701,-153.956344,0.00016913,2]
[335688008,1724431838710,-174.324383,0.00016913,2]
[335688010,1724431838720,-153.956345,0.00016913,2]
[335688012,1724431838730,-179.637311,0.00016913,2]
[335688014,1724431838741,-744.913437,0.00016913,2]
[335688015,1724431838753,-461.869034,0.00016913,2]
[335688016,1724431838762,-168.931042,0.00016913,2]
[335688017,1724431838771,-185.8,0.00016949,2]
[335688018,1724431838781,-154.89427941,0.00017,2]
[335688019,1724431838792,-201.17586134,0.00017,3]
[335688020,1724431838802,-1000.0,0.00017,17]
[335688021,1724431838814,-248.09798413,0.00017059,2]
[335688023,1724431838823,-185.8,0.00017067,2]
[335688024,1724431838834,-366.15075023,0.00017086,2]
[335688025,1724431838844,-248.304479,0.00017125,2]
[335688026,1724431838856,-153.956344,0.00017125,2]
[335688027,1724431838866,-153.956345,0.00017125,2]
[335688028,1724431838876,-744.913437,0.00017125,2]
[335688029,1724431838886,-461.869034,0.00017125,2]
[335688030,1724431838895,-185.8,0.00017185,2]
[335688031,1724431838905,-179.637311,0.00017195,2]
[335688032,1724431838915,-150.112233,0.000172,2]
[335688033,1724431838925,-500.0,0.00017247,7]
[335688034,1724431838935,-500.0,0.00017247,7]
[335688035,1724431838944,-500.0,0.00017247,7]
[335688036,1724431838954,-500.0,0.00017247,7]
[335688037,1724431838964,-500.0,0.00017247,7]
[335688038,1724431838973,-500.0,0.00017247,7]
[335688039,1724431838983,-500.0,0.00017247,7]
[335688040,1724431838993,-500.0,0.00017247,7]
[335688041,1724431839003,-500.0,0.00017247,7]
[335688042,1724431839012,-500.0,0.00017247,7]
[335688043,1724431839022,-500.0,0.00017247,7]
[335688044,1724431839033,-500.0,0.00017247,7]
[335688045,1724431839044,-406.8,0.00017247,7]
[335688046,1724431839053,-185.8,0.00017303,2]
[335688047,1724431839064,-248.304479,0.00017336,2]
[335688048,1724431839075,-153.956344,0.00017336,2]
[335688049,1724431839084,-174.324383,0.00017336,2]
[335688050,1724431839094,-153.956345,0.00017336,2]